fUSD/lending_fUSD_20240729
["ID","MTS","AMOUNT","RATE_DAILY","PERIOD"]
[333602232,1722275242383,150.0,6.124e-05,2]
[333602233,1722275242403,150.0,6.124e-05,2]
[333602234,1722275242422,150.0,6.124e-05,2]
[333602235,1722275242441,150.0,6.124e-05,2]
[333602236,1722275242462,150.0,6.124e-05,2]
[333602237,1722275242483,150.0,6.124e-05,2]
[333602238,1722275242502,150.0,6.124e-05,2]
[333602239,1722275242522,150.0,6.124e-05,2]
[333602240,1722275242543,150.0,6.124e-05,2]
[333602241,1722275242562,150.0,6.124e-05,2]
[333602242,1722275242582,150.0,6.124e-05,2]
[333602243,1722275242602,150.0,6.124e-05,2]
[333602244,1722275242623,150.0,6.124e-05,2]
[333602245,1722275242643,150.0,6.124e-05,2]
[333602246,1722275242663,150.0,6.124e-05,2]
[333602247,1722275242683,150.0,6.124e-05,2]
[333602248,1722275242705,150.0,6.124e-05,2]
[333602249,1722275242726,150.0,6.124e-05,2]
[333602250,1722275242747,150.0,6.124e-05,2]
[333602251,1722275242768,16282.74357897,6.124e-05,2]
[333602254,1722275284188,150.0,6.124e-05,2]
[333602255,1722275284207,150.0,6.124e-05,2]
[333602256,1722275284228,150.0,6.124e-05,2]
[333602257,1722275284250,150.0,6.124e-05,2]
[333602258,1722275284271,150.0,6.124e-05,2]
[333602259,1722275284292,150.0,6.124e-05,2]
[333602260,1722275284313,150.0,6.124e-05,2]
[333602261,1722275284335,150.0,6.124e-05,2]
[333602262,1722275284356,150.0,6.124e-05,2]
[333602263,1722275284375,150.0,6.124e-05,2]
[333602264,1722275284396,150.0,6.124e-05,2]
[333602265,1722275284417,150.0,6.124e-05,2]
[333602266,1722275284439,150.0,6.124e-05,2]
[333602267,1722275284461,150.0,6.124e-05,2]
[333602268,1722275284484,150.0,6.124e-05,2]
[333602269,1722275284511,150.0,6.124e-05,2]
[333602270,1722275284533,150.0,6.124e-05,2]
[333602271,1722275284555,150.0,6.124e-05,2]
[333602272,1722275284575,150.0,6.124e-05,2]
[333602273,1722275284596,150.0,6.124e-05,2]
[333602274,1722275284616,150.0,6.124e-05,2]
[333602275,1722275284636,150.0,6.124e-05,2]
[333602276,1722275284657,150.0,6.124e-05,2]
[333602277,1722275284678,5812.00526818,6.124e-05,2]
[333602278,1722275293263,925.71180866,6.124e-05,2]
[333602281,1722275341609,797.63484705,6.124e-05,2]
[333602282,1722275347207,13967.37662144,6.124e-05,2]
[333602283,1722275364847,1650.0,6.124e-05,2]
[333602284,1722275384197,9262.00526818,6.124e-05,2]
[333602287,1722275433324,-821.9954386,7.423e-05,2]
[333602288,1722275433334,-453.72486309,7.423e-05,2]
[333602289,1722275433344,-461.69,8.219e-05,2]
[333602290,1722275433354,-300.0,9.834e-05,2]
[333602291,1722275433364,-14963.06,9.835e-05,2]
[333602292,1722275433373,-200.0,9.882e-05,2]
[333602293,1722275433385,-848.92,0.00010192,2]
[333602294,1722275433395,-300.0,0.00010192,2]
[333602295,1722275433405,-150.0,0.00010469,2]
[333602296,1722275433414,-461.69,0.00010469,2]
[333602297,1722275433424,-8481.70743359,0.0001047,2]
[333602298,1722275433434,-150.340828,0.00010492,2]
[333602299,1722275433443,-500.0,0.00010629,2]
[333602300,1722275433453,-500.0,0.00010638,2]
[333602301,1722275433463,-500.0,0.00010647,2]
[333602302,1722275433472,-500.0,0.00010656,2]
[333602303,1722275433482,-500.0,0.00010665,2]
[333602304,1722275433491,-500.0,0.00010673,2]
[333602305,1722275433501,-500.0,0.00010682,2]
[333602306,1722275433511,-500.0,0.00010691,2]
[333602307,1722275433521,-500.0,0.000107,2]
[333602308,1722275433530,-150.0,0.000107,2]
[333602309,1722275433539,-425.72,0.000107,2]
[333602310,1722275433549,-530.19,0.000107,2]
[333602312,1722275433558,-355.99,0.000107,2]
[333602314,1722275433568,-355.99,0.000107,2]
[333602316,1722275433578,-150.0,0.000107,2]
[333602318,1722275433587,-425.72,0.000107,2]
[333602319,1722275433596,-530.19,0.000107,2]
[333602321,1722275433606,-530.19,0.000107,2]
[333602323,1722275433615,-150.0,0.000107,2]
[333602325,1722275433625,-425.72,0.000107,2]
[333602326,1722275433635,-425.72,0.000107,2]
[333602327,1722275433645,-150.0,0.000107,2]
[333602328,1722275433654,-500.0,0.00010709,2]
[333602329,1722275433663,-500.0,0.00010717,2]
[333602330,1722275433672,-500.0,0.00010726,2]
[333602331,1722275433681,-500.0,0.00010735,2]
[333602332,1722275433690,-500.0,0.00010744,2]
[333602333,1722275433699,-377.98548578,0.00010744,2]
[333602334,1722275433709,-1163.81712925,0.00010754,2]
[333602335,1722275433718,-2149.503927,0.00010754,2]
[333602336,1722275433727,-500.0,0.00010761,2]
[333602337,1722275433736,-500.0,0.0001077,2]
[333602338,1722275433746,-500.0,0.00010779,2]
[333602339,1722275433755,-500.0,0.00010788,2]
[333602340,1722275433765,-500.0,0.00010797,2]
[333602341,1722275433775,-21740.84375332,0.000108,2]
[333602342,1722275433806,-216.34346668,0.000108,2]
[333602343,1722275433824,-425.72,0.000108,2]
[333602344,1722275433833,-5218.39203163,0.000108,2]
[333602345,1722275433842,-61375.38754982,0.000108,2]
[333602346,1722275433854,-622.69522806,0.000108,2]
[333602347,1722275433865,-6704.0,0.000108,2]
[333602348,1722275433876,-21071.47239177,0.000108,2]
[333602349,1722275433895,-2188.8407,0.000108,2]
[333602350,1722275433906,-1344.5838,0.000108,2]
[333602369,1722275438146,-2735.53908701,7.423e-05,2]
[333602370,1722275438158,-4052.72401042,7.423e-05,2]
[333602388,1722275438914,-2473.74217075,7.423e-05,2]
[333602389,1722275438923,-500.0,0.00010621,2]
[333602390,1722275438933,-11526.25782956,0.000108,2]
[333602391,1722275438944,-509.11495521,0.000108,2]
[333602392,1722275438956,-2060.38102231,0.000108,2]
[333602393,1722275438975,-613.21,0.000108,2]
[333602394,1722275438985,-1938.81596643,0.000108,2]
[333602395,1722275438996,-12430.79395556,0.000108,2]
[333602396,1722275439007,-34639.48225279,0.000108,2]
[333602397,1722275439018,-889.92097399,0.000108,2]
[333602398,1722275439030,-3425.82752541,0.000108,2]
[333602399,1722275439051,-464.69727716,0.000108,2]
[333602400,1722275439061,-406.46916604,0.000108,2]
[333602401,1722275439072,-569.78816292,0.000108,2]
[333602402,1722275439084,-1090.57698879,0.000108,2]
[333602403,1722275439095,-2472.92464761,0.000108,2]
[333602404,1722275439106,-259.14264693,0.000108,2]
[333602405,1722275439117,-816.07128584,0.000108,2]
[333602406,1722275439128,-653.67901261,0.000108,2]
[333602407,1722275439140,-31562.41963906,0.000108,2]
[333602464,1722275440160,-11426.4565518,0.000108,2]
[333602491,1722275440416,-538.8774458,0.000108,2]
[333602493,1722275440428,-1621.46836993,0.000108,2]
[333602495,1722275440440,-268.24089973,0.000108,2]
[333602497,1722275440452,-1986.38719629,0.000108,2]
[333602499,1722275440464,-1244.6844767,0.000108,2]
[333602768,1722275443209,-3016.51889904,0.000108,2]
[333602789,1722275443307,-6545.81318284,0.000108,2]
[333602791,1722275443316,-500.0,0.00010805,2]
[333602794,1722275443327,-500.0,0.00010814,2]
[333602796,1722275443336,-420.0,0.00010818,2]
[333602798,1722275443345,-500.0,0.00010823,2]
[333602800,1722275443354,-500.0,0.00010832,2]
[333602802,1722275443363,-500.0,0.00010841,2]
[333602804,1722275443373,-163.983566,0.00010841,2]
[333602806,1722275443383,-3000.0,0.0001085,2]
[333602808,1722275443393,-169.01681465,0.00010858,2]
[333602810,1722275443401,-1000.0,0.00010858,2]
[333602812,1722275443410,-685.4,0.00010858,2]
[333602814,1722275443419,-692.0783,0.00010858,2]
[333602816,1722275443428,-6312.0066,0.00010858,2]
[333602818,1722275443438,-483.04027444,0.00010868,2]
[333602820,1722275443447,-483.04027444,0.00010873,2]
[333602822,1722275443456,-483.04027444,0.00010877,2]
[333602824,1722275443465,-716.501309,0.00010885,2]
[333602826,1722275443473,-3191.967483,0.00010885,2]
[333602828,1722275443483,-2149.503927,0.00010885,2]
[333602830,1722275443491,-261.96789196,0.00010889,2]
[333602852,1722275443500,-261.96789195,0.0001089,2]
[333602854,1722275443700,-174.25978123,0.0001089,2]
[333602856,1722275443710,-177.34217462,0.0001089,2]
[333602858,1722275443719,-261.96789195,0.0001089,2]
[333602860,1722275443727,-174.25978119,0.00010893,2]
[333602862,1722275443737,-174.25978119,0.00010895,2]
[333602864,1722275443746,-174.25978119,0.00010898,2]
[333602866,1722275443755,-1468.71974501,0.00010899,2]
[333602867,1722275443764,-1468.71974499,0.00010899,2]
[333602869,1722275443773,-1468.71974499,0.00010899,2]
[333602872,1722275443782,-1468.71974499,0.00010899,2]
[333602873,1722275443791,-1468.71974499,0.00010899,2]
[333602875,1722275443801,-1468.71974499,0.00010899,2]
[333602877,1722275443810,-1468.71974499,0.00010899,2]
[333602879,1722275443819,-1468.71974499,0.00010899,2]
[333602881,1722275443828,-169.01681465,0.00010899,2]
[333602883,1722275443838,-1468.71974499,0.00010899,2]
[333602885,1722275443847,-658.73865439,0.00010899,2]
[333602887,1722275443856,-658.73865437,0.000109,2]
[333602889,1722275443866,-174.25978119,0.000109,2]
[333602891,1722275443875,-530.19,0.000109,2]
[333602893,1722275443885,-150.0,0.000109,2]
[333602895,1722275443899,-355.99,0.000109,2]
[333602898,1722275443908,-1468.71974499,0.000109,2]
[333602899,1722275443918,-658.73865437,0.000109,2]
[333602902,1722275443927,-221.07,0.00010904,3]
[333602904,1722275443938,-500.0,0.0001091,2]
[333602906,1722275443948,-500.0,0.00010911,2]
[333602908,1722275443957,-500.0,0.00010944,2]
[333602910,1722275443966,-274.5035,0.00010944,2]
[333602912,1722275443977,-1000.0,0.00010944,2]
[333602914,1722275443986,-1000.0,0.00010944,2]
[333602915,1722275443995,-1000.0,0.00010944,2]
[333602918,1722275444005,-1000.0,0.00010944,2]
[333602920,1722275444014,-1000.0,0.00010944,2]
[333602922,1722275444024,-401.5936,0.00010944,2]
[333602924,1722275444033,-500.0,0.00010944,2]
[333602925,1722275444042,-500.0,0.00010944,2]
[333602927,1722275444051,-500.0,0.00010944,2]
[333602929,1722275444060,-500.0,0.00010944,2]
[333602931,1722275444070,-500.0,0.00010944,2]
[333602933,1722275444079,-500.0,0.00010944,2]
[333602935,1722275444089,-500.0,0.00010944,2]
[333602937,1722275444098,-500.0,0.00010944,2]
[333602939,1722275444107,-626.0355,0.00010944,2]
[333602941,1722275444115,-153.21,0.00010948,2]
[333602943,1722275444124,-5216.85075143,0.00010957,2]
[333602945,1722275444133,-500.0,0.00010958,2]
[333602946,1722275444144,-500.0,0.00010958,2]
[333602948,1722275444153,-500.0,0.00010958,2]
[333602950,1722275444163,-500.0,0.00010958,2]
[333602952,1722275444173,-174.82084752,0.00010958,2]
[333602954,1722275444182,-523.11624677,0.00010958,2]
[333602956,1722275444191,-500.0,0.00010958,2]
[333602958,1722275444200,-500.0,0.00010958,2]
[333602960,1722275444210,-226.92,0.00010958,2]
[333602962,1722275444219,-500.0,0.00010958,2]
[333602964,1722275444229,-500.0,0.00010958,2]
[333602966,1722275444238,-500.0,0.00010958,2]
[333602968,1722275444247,-500.0,0.00010958,2]
[333602970,1722275444256,-500.0,0.00010958,2]
[333602971,1722275444265,-500.0,0.00010958,2]
[333602972,1722275444274,-500.0,0.00010958,2]
[333602973,1722275444283,-500.0,0.00010958,2]
[333602974,1722275444292,-500.0,0.00010958,2]
[333602975,1722275444301,-500.0,0.00010958,2]
[333602976,1722275444310,-613.13163496,0.00010958,2]
[333602977,1722275444318,-500.0,0.00010958,2]
[333602978,1722275444328,-500.0,0.00010958,2]
[333602979,1722275444337,-500.0,0.00010958,2]
[333602981,1722275444347,-500.0,0.00010958,2]
[333602983,1722275444357,-500.0,0.00010958,2]
[333602985,1722275444366,-500.0,0.00010958,2]
[333602987,1722275444375,-500.0,0.00010958,2]
[333602989,1722275444385,-500.0,0.00010958,2]
[333602991,1722275444398,-300.0,0.00010958,2]
[333602993,1722275444407,-500.0,0.00010958,2]
[333602995,1722275444416,-500.0,0.00010958,2]
[333602997,1722275444425,-550.0,0.00010958,2]
[333602999,1722275444434,-500.0,0.00010958,2]
[333603001,1722275444444,-500.0,0.00010958,2]
[333603003,1722275444453,-500.0,0.00010958,2]
[333603005,1722275444463,-500.0,0.00010958,2]
[333603007,1722275444472,-500.0,0.00010958,2]
[333603009,1722275444481,-500.0,0.00010958,2]
[333603011,1722275444490,-500.0,0.00010958,2]
[333603013,1722275444499,-500.0,0.00010958,2]
[333603015,1722275444508,-297.01276336,0.00010958,2]
[333603017,1722275444517,-507.26319296,0.00010958,2]
[333603019,1722275444526,-500.0,0.00010958,2]
[333603021,1722275444535,-500.0,0.00010958,2]
[333603023,1722275444545,-500.0,0.00010958,2]
[333603025,1722275444554,-551.06,0.00010958,2]
[333603027,1722275444564,-430.52586898,0.00010958,2]
[333603029,1722275444573,-500.0,0.00010958,2]
[333603031,1722275444582,-668.52,0.00010958,2]
[333603033,1722275444591,-668.52,0.00010958,2]
[333603035,1722275444601,-668.52,0.00010958,2]
[333603037,1722275444610,-668.52,0.00010958,2]
[333603038,1722275444619,-500.0,0.00010958,2]
[333603041,1722275444629,-500.0,0.00010958,2]
[333603043,1722275444639,-500.0,0.00010958,2]
[333603045,1722275444649,-500.0,0.00010958,2]
[333603047,1722275444658,-500.0,0.00010958,2]
[333603049,1722275444667,-500.0,0.00010958,2]
[333603051,1722275444676,-500.0,0.00010958,2]
[333603053,1722275444685,-509.53104126,0.00010958,2]
[333603055,1722275444695,-500.0,0.00010958,2]
[333603057,1722275444704,-559.40800145,0.00010958,2]
[333603059,1722275444713,-500.0,0.00010958,2]
[333603061,1722275444722,-334.34,0.00010958,2]
[333603062,1722275444731,-500.0,0.00010958,2]
[333603064,1722275444740,-500.0,0.00010958,2]
[333603066,1722275444749,-500.0,0.00010958,2]
[333603068,1722275444758,-519.97653975,0.00010958,2]
[333603070,1722275444767,-433.18866683,0.00010958,2]
[333603071,1722275444776,-500.0,0.00010958,2]
[333603073,1722275444786,-500.0,0.00010958,2]
[333603075,1722275444796,-500.0,0.00010958,2]
[333603077,1722275444805,-649.90999999,0.00010958,2]
[333603079,1722275444815,-527.39491198,0.00010958,2]
[333603081,1722275444824,-500.0,0.00010958,2]
[333603083,1722275444833,-500.0,0.00010958,2]
[333603085,1722275444842,-500.0,0.00010958,2]
[333603086,1722275444851,-500.0,0.00010958,2]
[333603088,1722275444860,-500.0,0.00010958,2]
[333603090,1722275444869,-500.0,0.00010958,2]
[333603092,1722275444879,-362.67890001,0.00010958,2]
[333603094,1722275444889,-377.43,0.00010958,2]
[333603096,1722275444901,-500.0,0.00010958,2]
[333603098,1722275444910,-507.13388903,0.00010958,2]
[333603100,1722275444919,-500.0,0.00010958,2]
[333603102,1722275444928,-500.0,0.00010958,2]
[333603104,1722275444937,-500.0,0.00010958,2]
[333603106,1722275444947,-536.95464616,0.00010958,2]
[333603107,1722275444955,-500.0,0.00010958,2]
[333603109,1722275444964,-462.34972576,0.00010958,2]
[333603111,1722275444976,-500.0,0.00010958,2]
[333603113,1722275444984,-1307.02,0.00010958,2]
[333603115,1722275444993,-1307.02,0.00010958,2]
[333603117,1722275445004,-500.0,0.00010958,2]
[333603119,1722275445013,-1307.02,0.00010958,2]
[333603121,1722275445023,-1307.02,0.00010958,2]
[333603123,1722275445032,-316.09164969,0.00010958,2]
[333603125,1722275445042,-500.0,0.00010958,2]
[333603127,1722275445051,-500.0,0.00010958,2]
[333603129,1722275445060,-502.62297329,0.00010958,2]
[333603131,1722275445069,-500.0,0.00010958,2]
[333603133,1722275445079,-195.06,0.00010958,2]
[333603135,1722275445088,-500.0,0.00010958,2]
[333603137,1722275445097,-500.0,0.00010958,2]
[333603139,1722275445107,-500.0,0.00010958,2]
[333603141,1722275445116,-621.84,0.00010958,2]
[333603143,1722275445125,-626.32,0.00010958,2]
[333603145,1722275445134,-500.0,0.00010958,2]
[333603147,1722275445144,-310.62,0.00010958,2]
[333603149,1722275445153,-500.0,0.00010958,2]
[333603151,1722275445162,-500.0,0.00010958,2]
[333603153,1722275445171,-500.0,0.00010958,2]
[333603155,1722275445181,-537.19,0.00010958,2]
[333603157,1722275445190,-500.0,0.00010958,2]
[333603159,1722275445199,-502.9954732,0.00010958,2]
[333603161,1722275445209,-500.0,0.00010958,2]
[333603163,1722275445219,-500.0,0.00010958,2]
[333603165,1722275445228,-484.93,0.00010958,2]
[333603167,1722275445238,-500.0,0.00010958,2]
[333603169,1722275445248,-500.0,0.00010958,2]
[333603171,1722275445257,-500.0,0.00010958,2]
[333603173,1722275445267,-630.17,0.00010958,2]
[333603175,1722275445277,-500.0,0.00010958,2]
[333603177,1722275445286,-500.0,0.00010958,2]
[333603179,1722275445296,-500.0,0.00010958,2]
[333603181,1722275445306,-500.0,0.00010958,2]
[333603183,1722275445316,-500.0,0.00010958,2]
[333603185,1722275445325,-500.0,0.00010958,2]
[333603187,1722275445335,-500.0,0.00010958,2]
[333603189,1722275445344,-500.0,0.00010958,2]
[333603191,1722275445354,-638.5,0.00010958,2]
[333603193,1722275445362,-500.0,0.00010958,2]
[333603195,1722275445372,-253.46,0.00010958,2]
[333603197,1722275445382,-500.0,0.00010958,2]
[333603199,1722275445392,-500.0,0.00010958,2]
[333603201,1722275445402,-500.0,0.00010958,2]
[333603203,1722275445411,-500.0,0.00010958,2]
[333603205,1722275445420,-500.0,0.00010958,2]
[333603207,1722275445430,-500.0,0.00010958,2]
[333603209,1722275445439,-500.0,0.00010958,2]
[333603211,1722275445448,-500.0,0.00010958,2]
[333603213,1722275445458,-604.73269635,0.00010958,2]
[333603215,1722275445467,-502.95232209,0.00010958,2]
[333603216,1722275445476,-500.0,0.00010958,2]
[333603218,1722275445485,-500.0,0.00010958,2]
[333603220,1722275445494,-500.0,0.00010958,2]
[333603222,1722275445505,-184.80636715,0.00010958,2]
[333603224,1722275445514,-500.0,0.00010958,2]
[333603226,1722275445523,-500.0,0.00010958,2]
[333603228,1722275445532,-500.0,0.00010958,2]
[333603230,1722275445541,-500.0,0.00010958,2]
[333603232,1722275445550,-500.0,0.00010958,2]
[333603234,1722275445559,-500.0,0.00010958,2]
[333603236,1722275445568,-420.50303237,0.00010958,2]
[333603238,1722275445578,-413.96248083,0.00010958,2]
[333603240,1722275445586,-634.27327345,0.00010958,2]
[333603242,1722275445595,-500.0,0.00010958,2]
[333603244,1722275445604,-523.42218693,0.00010958,2]
[333603246,1722275445614,-500.0,0.00010958,2]
[333603248,1722275445623,-500.0,0.00010958,2]
[333603250,1722275445632,-500.0,0.00010958,2]
[333603251,1722275445641,-303.10869485,0.00010958,2]
[333603253,1722275445651,-500.0,0.00010958,2]
[333603255,1722275445660,-503.38125997,0.00010958,2]
[333603257,1722275445669,-500.0,0.00010958,2]
[333603259,1722275445678,-500.0,0.00010958,2]
[333603261,1722275445687,-500.0,0.00010958,2]
[333603263,1722275445696,-500.0,0.00010958,2]
[333603265,1722275445705,-546.09423127,0.00010958,2]
[333603267,1722275445714,-500.0,0.00010958,2]
[333603269,1722275445723,-500.0,0.00010958,2]
[333603271,1722275445733,-511.95056067,0.00010958,2]
[333603273,1722275445742,-500.0,0.00010958,2]
[333603275,1722275445752,-150.0,0.00010958,2]
[333603277,1722275445761,-500.0,0.00010958,2]
[333603279,1722275445770,-505.28247101,0.00010958,2]
[333603281,1722275445779,-500.0,0.00010958,2]
[333603283,1722275445788,-500.0,0.00010958,2]
[333603285,1722275445798,-507.17879061,0.00010958,2]
[333603287,1722275445806,-554.40678438,0.00010958,2]
[333603289,1722275445816,-500.0,0.00010958,2]
[333603291,1722275445825,-500.0,0.00010958,2]
[333603293,1722275445834,-500.0,0.00010958,2]
[333603295,1722275445844,-500.0,0.00010958,2]
[333603297,1722275445853,-500.0,0.00010958,2]
[333603299,1722275445862,-434.35008783,0.00010958,2]
[333603301,1722275445871,-500.0,0.00010958,2]
[333603302,1722275445880,-500.0,0.00010958,2]
[333603304,1722275445892,-343.78,0.00010958,2]
[333603306,1722275445903,-508.51951776,0.00010958,2]
[333603308,1722275445911,-217.86222274,0.00010958,2]
[333603310,1722275445921,-313.20934418,0.00010958,2]
[333603312,1722275445930,-500.0,0.00010958,2]
[333603314,1722275445941,-500.0,0.00010958,2]
[333603316,1722275445950,-500.0,0.00010958,2]
[333603319,1722275445959,-500.0,0.00010958,2]
[333603322,1722275445968,-500.0,0.00010958,2]
[333603325,1722275445977,-500.0,0.00010958,2]
[333603327,1722275445986,-500.0,0.00010958,2]
[333603329,1722275445995,-500.0,0.00010958,2]
[333603331,1722275446004,-514.3,0.00010958,2]
[333603333,1722275446013,-520.68,0.00010958,2]
[333603335,1722275446022,-388.26934935,0.00010958,2]
[333603337,1722275446031,-202.05,0.00010958,2]
[333603339,1722275446040,-500.0,0.00010958,2]
[333603341,1722275446049,-193.2,0.00010958,2]
[333603344,1722275446059,-524.84642712,0.00010958,2]
[333603347,1722275446068,-500.0,0.00010958,2]
[333603349,1722275446076,-500.0,0.00010958,2]
[333603351,1722275446085,-500.0,0.00010958,2]
[333603353,1722275446095,-500.0,0.00010958,2]
[333603354,1722275446103,-500.0,0.00010958,2]
[333603355,1722275446112,-500.0,0.00010958,2]
[333603356,1722275446121,-500.0,0.00010958,2]
[333603357,1722275446130,-500.0,0.00010958,2]
[333603358,1722275446140,-517.02,0.00010958,2]
[333603359,1722275446149,-736.12,0.00010958,2]
[333603360,1722275446159,-500.0,0.00010958,2]
[333603361,1722275446168,-533.93374335,0.00010958,2]
[333603362,1722275446176,-500.0,0.00010958,2]
[333603364,1722275446186,-500.0,0.00010958,2]
[333603366,1722275446195,-500.0,0.00010958,2]
[333603368,1722275446204,-500.0,0.00010958,2]
[333603370,1722275446213,-500.0,0.00010958,2]
[333603372,1722275446222,-500.0,0.00010958,2]
[333603374,1722275446231,-500.0,0.00010958,2]
[333603376,1722275446241,-500.0,0.00010958,2]
[333603378,1722275446250,-567.56,0.00010958,2]
[333603380,1722275446258,-500.0,0.00010958,2]
[333603382,1722275446268,-224.10774366,0.00010958,2]
[333603384,1722275446277,-500.0,0.00010958,2]
[333603386,1722275446286,-500.0,0.00010958,2]
[333603388,1722275446295,-500.0,0.00010958,2]
[333603390,1722275446305,-459.30545034,0.00010958,2]
[333603392,1722275446314,-500.0,0.00010958,2]
[333603393,1722275446323,-513.51818669,0.00010958,2]
[333603396,1722275446333,-500.0,0.00010958,2]
[333603398,1722275446342,-500.0,0.00010958,2]
[333603399,1722275446351,-500.0,0.00010958,2]
[333603401,1722275446360,-500.0,0.00010958,2]
[333603403,1722275446369,-500.0,0.00010958,2]
[333603405,1722275446379,-500.0,0.00010958,2]
[333603407,1722275446389,-500.0,0.00010958,2]
[333603410,1722275446400,-500.0,0.00010958,2]
[333603412,1722275446409,-500.0,0.00010958,2]
[333603414,1722275446418,-500.0,0.00010958,2]
[333603415,1722275446427,-500.0,0.00010958,2]
[333603417,1722275446436,-500.0,0.00010958,2]
[333603419,1722275446445,-500.91437621,0.00010958,2]
[333603421,1722275446455,-500.0,0.00010958,2]
[333603423,1722275446464,-500.0,0.00010958,2]
[333603425,1722275446474,-500.0,0.00010958,2]
[333603427,1722275446483,-500.0,0.00010958,2]
[333603429,1722275446492,-500.0,0.00010958,2]
[333603431,1722275446502,-500.0,0.00010958,2]
[333603433,1722275446511,-500.0,0.00010958,2]
[333603435,1722275446520,-500.0,0.00010958,2]
[333603437,1722275446529,-557.53,0.00010958,2]
[333603439,1722275446539,-500.0,0.00010958,2]
[333603441,1722275446548,-2492.57,0.00010958,2]
[333603443,1722275446557,-500.0,0.00010958,2]
[333603445,1722275446566,-500.0,0.00010958,2]
[333603447,1722275446575,-500.0,0.00010958,2]
[333603449,1722275446585,-500.0,0.00010958,2]
[333603451,1722275446594,-500.0,0.00010958,2]
[333603453,1722275446603,-180.0,0.00010958,2]
[333603455,1722275446612,-500.0,0.00010958,2]
[333603457,1722275446621,-500.0,0.00010958,2]
[333603459,1722275446631,-502.68836629,0.00010958,2]
[333603461,1722275446642,-500.0,0.00010958,2]
[333603463,1722275446651,-500.0,0.00010958,2]
[333603465,1722275446661,-500.0,0.00010958,2]
[333603467,1722275446671,-324.51,0.00010958,2]
[333603469,1722275446680,-977.24,0.00010958,2]
[333603471,1722275446689,-630.52,0.00010958,2]
[333603473,1722275446699,-500.0,0.00010958,2]
[333603475,1722275446708,-511.99460263,0.00010958,2]
[333603477,1722275446717,-500.0,0.00010958,2]
[333603479,1722275446726,-500.0,0.00010958,2]
[333603481,1722275446735,-500.0,0.00010958,2]
[333603483,1722275446744,-505.88000065,0.00010958,2]
[333603485,1722275446753,-510.25419238,0.00010958,2]
[333603487,1722275446763,-500.0,0.00010958,2]
[333603489,1722275446772,-500.0,0.00010958,2]
[333603491,1722275446781,-503.11799351,0.00010958,2]
[333603493,1722275446791,-500.0,0.00010958,2]
[333603495,1722275446799,-500.0,0.00010958,2]
[333603497,1722275446808,-500.0,0.00010958,2]
[333603499,1722275446818,-500.0,0.00010958,2]
[333603501,1722275446827,-500.0,0.00010958,2]
[333603503,1722275446836,-500.0,0.00010958,2]
[333603505,1722275446845,-500.0,0.00010958,2]
[333603507,1722275446854,-510.95140685,0.00010958,2]
[333603509,1722275446863,-505.30177558,0.00010958,2]
[333603511,1722275446872,-588.47059392,0.00010958,2]
[333603513,1722275446882,-173.52,0.00010958,2]
[333603515,1722275446893,-505.46786168,0.00010958,2]